Cogmind - Beta 13 X2 @@@ ROGUE MODE // 2024.01.06 @ 15:43:24 Player: Minty Result: Destroyed by S-27 Virus with Autogun Performance ------------- Evolutions (5) 2500 Regions Visited (13) 2600 Robots Destroyed (25) 125 Value Destroyed (874) 874 Prototype IDs (21) 420 Alien Tech Used (0) 0 Bonus (1042) 1042 TOTAL SCORE: 7561 Bonus ------- High Alert Combat Kills 21 Follower Combat Kills 21 Entered Garrisons 200 Used RIF Installer 500 Met Data Miner 300 Cogmind --------- Core Integrity 0/1000 Matter 300/300 Energy 295/295 System Corruption 0% Temperature Cool (0) Movement Core (200) Ox3 Location -5/Factory Parts ------- > --- POWER (1) -------- Fusion Reactor > --- PROPULSION (3) --- (None) > --- UTILITY (10) ----- (None) > --- WEAPON (3) ------- (None) > --- INVENTORY (5) ---- Remote Datajack Improved Remote Datajack Peak State ------------ > --- POWER ------------ Fission Core > --- PROPULSION ------- VTOL Module VTOL Module Improved Cesium-ion Thruster > --- UTILITY ---------- Improved Sensor Array Advanced Signal Interpreter Advanced Targeting Computer Advanced Targeting Computer Hacking Suite Relay Coupler [NC] Relay Coupler [Swarmer] Relay Coupler [Sentry] > --- WEAPON ----------- Heavy Particle Gun Remote Datajack > --- INVENTORY -------- Lightning Gun Force Rifle High-powered Shotgun Plasma Flamer [Rating: 48] Favorites ----------- Power Light Ion Engine Engine Light Ion Engine Power Core Fission Core Reactor Fusion Reactor Propulsion VTOL Module Leg Aluminum Leg Hover Unit Backup Propulsion I Flight Unit VTOL Module Utility Advanced Targeting Computer Device Improved Sensor Array Storage Small Storage Unit Processor Advanced Targeting Computer Hackware Hacking Suite Weapon High-powered Shotgun Energy Gun Heavy Particle Gun Ballistic Gun High-powered Shotgun Special Weapon Remote Datajack Special Melee Weapon Datajack Build | -11 -10 -9 -9 -8 -7 -7 -7 -6 -6 -6 -6 -5 -5 ------- Run | Yrd Mat Mat Min Mat Fac Gar Fac Fac Low Low Dat Pro Fac Slots Evolved 10 | . . 2 . 2 2 . . 2 . . . . 2 Power . | . . . . . . . . . . . . . . Propulsion 1 | . . 1 . . . . . . . . . . . Utility 8 | . . 1 . 2 2 . . 1 . . . . 2 Weapon 1 | . . . . . . . . 1 . . . . . Parts Attached 71 | . 3 7 3 10 1 5 16 4 5 1 . 5 11 Power 13 | . . . . 2 . . 2 2 2 . . 2 3 Engine 4 | . . . . 2 . . 1 1 . . . . . Core 6 | . . . . . . . 1 1 2 . . 2 . Reactor 3 | . . . . . . . . . . . . . 3 Propulsion 11 | . 1 1 2 1 . . 2 . 3 . . . 1 Treads . | . . . . . . . . . . . . . . Leg . | . . . . . . . . . . . . . . Wheel . | . . . . . . . . . . . . . . Hover 1 | . 1 . . . . . . . . . . . . Flight 10 | . . 1 2 1 . . 2 . 3 . . . 1 Utility 22 | . 2 2 1 5 . 2 6 1 . . . . 3 Device 9 | . 1 1 1 2 . . 2 . . . . . 2 Storage . | . . . . . . . . . . . . . . Processor 7 | . 1 1 . 1 . . 3 1 . . . . . Hackware 6 | . . . . 2 . 2 1 . . . . . 1 Protection . | . . . . . . . . . . . . . . Artifact . | . . . . . . . . . . . . . . Weapon 25 | . . 4 . 2 1 3 6 1 . 1 . 3 4 Energy Gun 10 | . . . . 1 1 1 2 1 . . . 2 2 Energy Cannon . | . . . . . . . . . . . . . . Ballistic Gun 8 | . . 4 . 1 . . 3 . . . . . . Ballistic Cannon . | . . . . . . . . . . . . . . Launcher . | . . . . . . . . . . . . . . Special Weapon 6 | . . . . . . 1 1 . . 1 . 1 2 Impact Weapon . | . . . . . . . . . . . . . . Slashing Weapon . | . . . . . . . . . . . . . . Piercing Weapon . | . . . . . . . . . . . . . . Special Melee Weapon 1 | . . . . . . 1 . . . . . . . Unidentified Prototypes 8 | . . 1 . 2 . . 2 1 . . . . 2 Parts Lost 33 | . . . . 7 1 4 2 . 1 . . 11 7 Power 7 | . . . . 2 . 1 . . 1 . . 3 . Propulsion 10 | . . . . 4 1 1 . . . . . 2 2 Utility 10 | . . . . 1 . 1 . . . . . 6 2 Weapon 6 | . . . . . . 1 2 . . . . . 3 Highest Loss Streak 5 | . . . . 5 1 3 1 . 1 . . 4 4 To Critical Strikes 1 | . . . . . . . . . . . . . 1 Average Slot Usage (%) 61 | . 89 75 82 66 70 50 71 84 84 80 80 39 6 Engine 4 | . 14 11 11 7 7 2 3 6 3 . . . . Core 1 | . . . . . . . 3 . 1 6 6 3 . Leg 1 | . 23 3 . . . . . . . . . . . Hover 2 | . 4 11 5 4 15 5 . . . . . . . Flight 7 | . . 7 22 9 . . 3 13 14 20 20 10 2 Device 6 | . 8 13 11 15 15 7 6 6 6 6 6 . . Processor 14 | . 2 15 11 9 15 15 22 18 20 20 20 10 . Hackware 13 | . . . . 9 7 13 23 26 26 22 20 9 2 Energy Gun 2 | . 9 . . 7 9 4 . 6 3 . . 2 . Ballistic Gun 4 | . 14 13 22 3 . . 8 . . . . . . Special Weapon 1 | . . . . . . . . 6 6 4 6 . . Naked Turns 57 | . . . . . . . . . . . . . 57 Heaviest Build 14 | 11 13 11 11 13 12 12 12 10 14 14 14 14 12 Greatest Support 20 | 20 20 12 14 18 12 12 10 10 14 14 14 14 13 Greatest Overweight (x) 3 | . . . . 1 1 . 3 . 1 . . . . Average Overweight (x) . | . . . . . . . . . . . . . . Largest Inventory Capacity 8 | . 8 5 5 5 5 5 5 5 5 5 5 5 5 Average Capacity 5 | . 7 5 5 5 5 5 5 5 5 5 5 5 5 Most Carried 8 | . 8 5 5 5 5 5 5 5 5 5 4 5 4 Average Carried 4 | . 5 4 4 4 4 4 3 4 4 3 4 4 3 Final Capacity 8 | 8 5 5 5 5 5 5 5 5 5 5 5 5 5 Final Carried 6 | 6 5 5 5 5 4 4 3 5 3 4 4 4 2 Class Distribution -------------------- 72% | Mutant 27% | Sprinter Dominant Class ---------------- Mutant | -10/Materials Mutant | -9/Materials Sprinter | -9/Mines Mutant | -8/Materials Mutant | -7/Factory Mutant | -7/Garrison Mutant | -7/Factory Sprinter | -6/Factory Sprinter | -6/Lower Caves Sprinter | -6/Lower Caves Sprinter | -6/Data Miner Sprinter | -5/Proximity Caves Mutant | -5/Factory Resources | -11 -10 -9 -9 -8 -7 -7 -7 -6 -6 -6 -6 -5 -5 ----------- Run | Yrd Mat Mat Min Mat Fac Gar Fac Fac Low Low Dat Pro Fac Matter Collected 1188 | 188 14 52 33 91 34 45 270 . 67 171 . 147 76 Remotely . | . . . . . . . . . . . . . . Salvage Created 684 | . 14 52 . 126 34 45 253 . . 39 . 64 57 Parts 49 | . 2 4 . 13 2 1 14 . . 1 . 10 2 Haulers Intercepted 3 | . . 1 . 1 . . 1 . . . . . . Recyclers Shooed 1 | . . . . . . . 1 . . . . . . Parts Field Recycled . | . . . . . . . . . . . . . . Retrieved Matter . | . . . . . . . . . . . . . . Parts Self-Destructed 12 | . . . . . . . . . . 1 . 11 . Prevented . | . . . . . . . . . . . . . . Kills | -11 -10 -9 -9 -8 -7 -7 -7 -6 -6 -6 -6 -5 -5 ------- Run | Yrd Mat Mat Min Mat Fac Gar Fac Fac Low Low Dat Pro Fac Combat Hostiles Destroyed 18 | . . . . 5 1 1 5 . . 1 . 3 2 Melee 1 | . . . . . . . . . . . . . 1 Guns 13 | . . . . 5 1 1 5 . . . . 1 . Cannons 2 | . . . . . . . . . . . . 2 . AOE 1 | . . . . . . . . . . . . . 1 Classes Destroyed 9 | . 1 1 . 1 1 1 2 . . . . 2 . Builder 1 | . . . . . . . 1 . . . . . . Hauler 3 | . . 1 . 1 . . 1 . . . . . . Recycler 1 | . . . . . . . 1 . . . . . . Drone 2 | . . . . . . . . . . . . 2 . Watcher 2 | . 1 1 . . . . . . . . . . . Swarmer 9 | . . . . 5 . . 2 . . . . . 2 Grunt 5 | . . . . . 1 . 3 . . 1 . . . Sentry 1 | . . . . . . 1 . . . . . . . Programmer 1 | . . . . . . . . . . . . 1 . Best Kill Streak 3 | . 1 1 . 3 1 1 3 . . 1 . 2 1 Combat Bots Only 3 | . . . . 3 1 1 3 . . 1 . 2 1 Max Kills in Single Turn 2 | . 1 1 . 2 1 1 2 . . 1 . 1 1 Gunslinging 1 | . . . . 1 . . . . . . . . . Exploded 1 | . . . . . . . . . . . . . 1 Melee 1 | . . . . . . . . . . . . . 1 Uniques/NPCs Destroyed . | . . . . . . . . . . . . . . Combat | -11 -10 -9 -9 -8 -7 -7 -7 -6 -6 -6 -6 -5 -5 -------- Run | Yrd Mat Mat Min Mat Fac Gar Fac Fac Low Low Dat Pro Fac Hostile Shots Fired 532 | . . 3 12 89 11 72 40 9 43 18 . 74 161 Missed 232 | . . 3 2 38 6 27 16 5 28 11 . 33 63 Damage Taken 4275 | . . . 86 546 73 487 350 29 135 92 . 952 1525 Core 2374 | . . . . 192 29 285 104 23 55 69 . 610 1007 Absorbed by Shields . | . . . . . . . . . . . . . . Core Remaining (%) 69 | 100 100 . 100 65 . . 40 . . . . 10 . Volleys Fired 133 | . 1 8 8 22 4 9 22 15 7 2 . 22 13 Largest 2 | . 2 2 2 2 1 1 2 1 1 1 . 1 1 Hottest 100 | . 60 46 46 60 65 100 80 5 5 100 . 100 100 Shots Fired 173 | . 2 10 16 32 4 9 41 15 7 2 . 22 13 Gun 137 | . 2 10 16 32 4 8 40 . . . . 17 8 Cannon . | . . . . . . . . . . . . . . Launcher . | . . . . . . . . . . . . . . Special 36 | . . . . . . 1 1 15 7 2 . 5 5 Kinetic 74 | . 1 10 16 8 . . 39 . . . . . . Thermal 67 | . . . . 24 4 9 1 . . 2 . 19 8 Explosive . | . . . . . . . . . . . . . . Electromagnetic 6 | . 1 . . . . . . . . . . . 5 Robot Hit Streak 18 | . 1 2 2 7 5 18 6 8 6 2 . 4 6 Robot Miss Streak 5 | . . 1 5 3 3 2 5 1 3 . . 2 2 Penetration Max . | . . . . . . . . . . . . . . Secondary Targets 1 | . . . . 1 . . . . . . . . . Max Gunslinging Chain 1 | . . . . 1 . . . . . . . . . Shots Hit Robots 109 | . 1 6 4 20 4 6 31 12 3 2 . 14 6 Core Hits 60 | . 1 4 . 8 9 12 17 . . 1 . 5 3 Critical Kills . | . . . . . . . . . . . . . . Critical Parts Destroyed 1 | . . . . . . . . . . . . 1 . Critical Strikes 4 | . . . . . . . . . . 1 . 3 . Burn 2 | . . . . . . . . . . 1 . 1 . Destroy 2 | . . . . . . . . . . . . 2 . Melee Attacks . | . . . . . . . . . . . . . . Impact . | . . . . . . . . . . . . . . Slashing . | . . . . . . . . . . . . . . Piercing . | . . . . . . . . . . . . . . Sneak Attacks . | . . . . . . . . . . . . . . Combat Hostiles . | . . . . . . . . . . . . . . Follow-up Attacks . | . . . . . . . . . . . . . . Damage Inflicted 1583 | . 24 62 55 269 66 117 584 . . 26 . 278 102 Guns 1496 | . 24 62 55 269 66 117 584 . . . . 254 65 Cannons . | . . . . . . . . . . . . . . Explosions . | . . . . . . . . . . . . . . Melee . | . . . . . . . . . . . . . . Ramming 11 | . . . . . . . . . . . . . 11 Kinetic 809 | . . 62 55 108 . . 584 . . . . . . Thermal 721 | . . . . 161 66 117 . . . 26 . 278 73 Explosive . | . . . . . . . . . . . . . . Electromagnetic 42 | . 24 . . . . . . . . . . . 18 Impact . | . . . . . . . . . . . . . . Slashing . | . . . . . . . . . . . . . . Piercing . | . . . . . . . . . . . . . . Highest Corruption 10 | . . . . . . . . . . . . 10 . Average Corruption 8 | . . . . . . . . . . . . 8 . Corruption Purged . | . . . . . . . . . . . . . . Corruption Blocked . | . . . . . . . . . . . . . . Effects 9 | . . . . . . . . . . . . 9 . Message Errors 1 | . . . . . . . . . . . . 1 . Matter Fused 3 | . . . . . . . . . . . . 3 . Energy Discharges 1 | . . . . . . . . . . . . 1 . Data Loss (minor) 1 | . . . . . . . . . . . . 1 . Data Loss (major) 1 | . . . . . . . . . . . . 1 . Alerts 1 | . . . . . . . . . . . . 1 . Misdirections 1 | . . . . . . . . . . . . 1 . Overload Shots . | . . . . . . . . . . . . . . Overflow Damage . | . . . . . . . . . . . . . . Projectiles . | . . . . . . . . . . . . . . Explosions . | . . . . . . . . . . . . . . Melee . | . . . . . . . . . . . . . . Knockbacks . | . . . . . . . . . . . . . . Impact . | . . . . . . . . . . . . . . Kinetic . | . . . . . . . . . . . . . . Secondary . | . . . . . . . . . . . . . . Self-Inflicted Damage 5 | . . . . . . . . . . . . . 5 Shots . | . . . . . . . . . . . . . . Rammed 6 | . . . . . . . . . . . . . 6 Targets Rammed 6 | . . . . . . . . . . . . . 6 Kicked . | . . . . . . . . . . . . . . Crushed . | . . . . . . . . . . . . . . Highest Temperature 102 | . 20 . . 31 75 102 16 . . 81 . 99 54 Average Temperature 34 | . 15 . . 12 39 54 8 . . 41 . 40 25 Received Heat Transfer 675 | . . . . 126 63 81 144 6 24 . . 159 72 Siege Activations . | . . . . . . . . . . . . . . Robots Corrupted . | . . . . . . . . . . . . . . Combat Hostiles . | . . . . . . . . . . . . . . Parts Fried . | . . . . . . . . . . . . . . Impact Corruptions . | . . . . . . . . . . . . . . Robots Melted 1 | . . . . . . . . . . 1 . . . Combat Hostiles 1 | . . . . . . . . . . 1 . . . Parts Melted 5 | . . . . 2 . . . . . 1 . 2 . Heat Transferred 1960 | . . . . 481 85 150 . . . 320 . 690 234 Parts Sabotaged . | . . . . . . . . . . . . . . Parts Stolen . | . . . . . . . . . . . . . . Parts Stripped . | . . . . . . . . . . . . . . Power Chain Reactions . | . . . . . . . . . . . . . . Missiles Intercepted . | . . . . . . . . . . . . . . Alert | -11 -10 -9 -9 -8 -7 -7 -7 -6 -6 -6 -6 -5 -5 ------- Run | Yrd Mat Mat Min Mat Fac Gar Fac Fac Low Low Dat Pro Fac Peak Influence 733 | . 22 77 179 414 220 312 305 117 . . . . 733 Initial 376 | . . 9 30 69 188 147 163 83 . . . . 376 Average 210 | . 8 45 115 180 197 217 189 95 . . . . 523 Maximum Alert Level 3 | . . . . 2 1 1 1 . . . . . 3 Low Security (%) 61 | . 100 100 100 61 55 40 65 100 . . . . . Level 1 23 | . . . . 36 44 59 34 . . . . . 10 Level 2 13 | . . . . 2 . . . . . . . . 85 Level 3 . | . . . . . . . . . . . . . 3 Level 4 . | . . . . . . . . . . . . . . Level 5 . | . . . . . . . . . . . . . . High Security . | . . . . . . . . . . . . . . Max Security . | . . . . . . . . . . . . . . Squads Dispatched 12 | . . 1 . 3 1 . 2 . . . . 1 4 Investigation 4 | . . 1 . . . . 1 . . . . . 2 Extermination . | . . . . . . . . . . . . . . Reinforcement 6 | . . . . 3 1 . 1 . . . . . 1 Assault 2 | . . . . . . . . . . . . 1 1 Garrison . | . . . . . . . . . . . . . . Intercept . | . . . . . . . . . . . . . . Searches Triggered 1 | . . . . . . . . . . . . . 1 Data Miner Redirects 1 | . . . . . . . . . . . . . 1 Construction Impeded 1 | . . . . . . . . . . . . . 1 Haulers Reinforced 2 | . . . . . 1 . 1 . . . . . . Active Scanning Responses . | . . . . . . . . . . . . . . Cargo Convoy Interrupts . | . . . . . . . . . . . . . . Stealth | -11 -10 -9 -9 -8 -7 -7 -7 -6 -6 -6 -6 -5 -5 --------- Run | Yrd Mat Mat Min Mat Fac Gar Fac Fac Low Low Dat Pro Fac Distress Signals 2 | . . 1 . 1 . . . . . . . . . Communications Jammed . | . . . . . . . . . . . . . . Distress Signals . | . . . . . . . . . . . . . . Times Spotted 153 | . 3 9 5 27 5 13 11 5 7 6 . 39 23 Peak Tracking Total 17 | . 2 5 4 17 4 9 5 3 6 4 . 16 10 Tactical Retreats 30 | . . 2 2 6 . 2 3 . 1 . . 12 2 Traps | -11 -10 -9 -9 -8 -7 -7 -7 -6 -6 -6 -6 -5 -5 ------- Run | Yrd Mat Mat Min Mat Fac Gar Fac Fac Low Low Dat Pro Fac Traps Triggered 1 | . . . . . . . . . . . . . 1 Indirectly . | . . . . . . . . . . . . . . Trap Hack Attempts . | . . . . . . . . . . . . . . Triggered . | . . . . . . . . . . . . . . Disarmed 4 | . . . . 4 . . . . . . . . . Reprogrammed 6 | . . . . . . . . 6 . . . . . Reused . | . . . . . . . . . . . . . . Traps Extracted . | . . . . . . . . . . . . . . Installed . | . . . . . . . . . . . . . . Triggered 2 | . . . . . . . . . . 2 . . . Machines | -11 -10 -9 -9 -8 -7 -7 -7 -6 -6 -6 -6 -5 -5 ---------- Run | Yrd Mat Mat Min Mat Fac Gar Fac Fac Low Low Dat Pro Fac Machines Disabled 2 | . . . . . . 1 . . . . . . 1 Max in Single Turn 1 | . . . . . . 1 . . . . . . 1 Garrison Access 2 | . . . . . . . 1 . . . . . 1 Garrison Relay 1 | . . . . . . 1 . . . . . . . Machines Repaired . | . . . . . . . . . . . . . . Machines Dismantled . | . . . . . . . . . . . . . . Machines Sabotaged . | . . . . . . . . . . . . . . Overloaded Fab Kills . | . . . . . . . . . . . . . . Hacking | -11 -10 -9 -9 -8 -7 -7 -7 -6 -6 -6 -6 -5 -5 --------- Run | Yrd Mat Mat Min Mat Fac Gar Fac Fac Low Low Dat Pro Fac Machines Accessed 16 | . . 1 . 2 1 . 3 2 . 2 3 . 2 Terminals 7 | . . 1 . 1 . . 2 2 . . . . 1 Fabricators 1 | . . . . . . . . . . . . . 1 Repair Stations 1 | . . . . 1 . . . . . . . . . Recycling Units . | . . . . . . . . . . . . . . Scanalyzers . | . . . . . . . . . . . . . . Garrison Access 2 | . . . . . 1 . 1 . . . . . . Total Hacks 56 | . . 5 . 6 1 . 6 7 . 2 20 . 9 Successful 39 | . . 1 . 3 1 . 2 6 . 2 20 . 4 Failed 17 | . . 4 . 3 . . 4 1 . . . . 5 Catastrophic 1 | . . 1 . . . . . . . . . . . Database Lockouts . | . . . . . . . . . . . . . . Manual 11 | . . . . 4 . . . 3 . . . . 4 Terminals 27 | . . 5 . 5 . . 5 7 . . . . 5 Fabricators 4 | . . . . . . . . . . . . . 4 Repair Stations 1 | . . . . 1 . . . . . . . . . Recycling Units . | . . . . . . . . . . . . . . Scanalyzers . | . . . . . . . . . . . . . . Garrison Access 2 | . . . . . 1 . 1 . . . . . . Terminal Hacks 32 | . . 1 . 2 . . 1 5 . 2 20 . 1 Record 3 | . . . . . . . . . . . 3 . . Part Schematic 9 | . . . . . . . . . . . 9 . . Robot Schematic 5 | . . . . . . . . . . . 5 . . Prototype ID Bank 4 | . . . . . . . . 1 . . 3 . . Open Door 2 | . . . . . . . . . . 2 . . . Alert Level 2 | . . . . . . . 1 1 . . . . . Locate Traps 4 | . . . . 1 . . . 2 . . . . 1 Disarm Traps 1 | . . . . 1 . . . . . . . . . Reprogram Traps 1 | . . . . . . . . 1 . . . . . Registered Prototypes 1 | . . 1 . . . . . . . . . . . Fabricator Hacks 2 | . . . . . . . . . . . . . 2 Load Schematic 1 | . . . . . . . . . . . . . 1 Build 1 | . . . . . . . . . . . . . 1 Repair Station Hacks 1 | . . . . 1 . . . . . . . . . Refit 1 | . . . . 1 . . . . . . . . . Recycling Unit Hacks . | . . . . . . . . . . . . . . Scanalyzer . | . . . . . . . . . . . . . . Garrison Access Hacks 2 | . . . . . 1 . 1 . . . . . . Unlock Access 1 | . . . . . 1 . . . . . . . . Seal Access 1 | . . . . . . . 1 . . . . . . Unauthorized Hacks 2 | . . . . . . . . 1 . . . . 1 Terminals 2 | . . . . . . . . 1 . . . . 1 Assimilate 1 | . . . . . . . . . . . . . 1 Botnet 1 | . . . . . . . . 1 . . . . . Fabricators . | . . . . . . . . . . . . . . Repair Stations . | . . . . . . . . . . . . . . Recycling Units . | . . . . . . . . . . . . . . Scanalyzers . | . . . . . . . . . . . . . . Garrison Access . | . . . . . . . . . . . . . . Data Cores Recovered . | . . . . . . . . . . . . . . Used . | . . . . . . . . . . . . . . Hacking Detections 8 | . . 1 . 1 . . 2 2 . . . . 2 Full Trace Events 4 | . . 1 . . . . 1 . . . . . 2 Feedback Events . | . . . . . . . . . . . . . . Feedback Blocked . | . . . . . . . . . . . . . . Robot Schematics Acquired 5 | . . . . . . . . . . . 5 . . Robots Built . | . . . . . . . . . . . . . . Authchips . | . . . . . . . . . . . . . . Time 169 | . . . . . . . . . . . . . 169 Total Robot Build Rating . | . . . . . . . . . . . . . . Part Schematics Acquired 9 | . . . . . . . . . . . 9 . . Parts Built . | . . . . . . . . . . . . . . Authchips . | . . . . . . . . . . . . . . Time . | . . . . . . . . . . . . . . Total Part Build Rating . | . . . . . . . . . . . . . . Parts Repaired . | . . . . . . . . . . . . . . Time . | . . . . . . . . . . . . . . Parts Recycled . | . . . . . . . . . . . . . . Recycled Matter . | . . . . . . . . . . . . . . Retrieved Matter . | . . . . . . . . . . . . . . Retrieved Components . | . . . . . . . . . . . . . . Parts Scanalyzed . | . . . . . . . . . . . . . . Part Schematics Acquired . | . . . . . . . . . . . . . . Parts Damaged . | . . . . . . . . . . . . . . Bothacking | -11 -10 -9 -9 -8 -7 -7 -7 -6 -6 -6 -6 -5 -5 ------------ Run | Yrd Mat Mat Min Mat Fac Gar Fac Fac Low Low Dat Pro Fac Used RIF Installer 1 | . . . . . . 1 . . . . . . . Robots Hacked 11 | . . . . . . . 1 5 3 . . 2 . Non-combat 5 | . . . . . . . 1 4 . . . . . Combat 6 | . . . . . . . . 1 3 . . 2 . Robot Hacks Applied 16 | . . . . . . . 1 10 3 . . 2 . parse_system 5 | . . . . . . . . 3 1 . . 1 . generate_echo 1 | . . . . . . . 1 . . . . . . drop_inventory 1 | . . . . . . . . 1 . . . . . locate_traps 1 | . . . . . . . . 1 . . . . . summon_haulers 1 | . . . . . . . . 1 . . . . . map_route 1 | . . . . . . . . 1 . . . . . mark_security 1 | . . . . . . . . 1 . . . . . relay_feed 1 | . . . . . . . . 1 . . . . . amplify_resonance 1 | . . . . . . . . . 1 . . . . go_dormant 1 | . . . . . . . . . . . . 1 . overwrite_iff 1 | . . . . . . . . . 1 . . . . formatsys_high 1 | . . . . . . . . 1 . . . . . Relay Couplers Released 5 | . . . . . . 5 . . . . . . . Machine Destruction 5 | . . . . . . 5 . . . . . . . Attached 3 | . . . . . . 2 1 . . . . . . Fabnet Peak Effective % . | . . . . . . . . . . . . . . Robots Rewired 1 | . . . . . . . . 1 . . . . . Allies Hacked . | . . . . . . . . . . . . . . Hacks Repelled . | . . . . . . . . . . . . . . Allies | -11 -10 -9 -9 -8 -7 -7 -7 -6 -6 -6 -6 -5 -5 -------- Run | Yrd Mat Mat Min Mat Fac Gar Fac Fac Low Low Dat Pro Fac Total Allies 6 | . . . 1 . . . . 2 1 . . 1 1 Largest Group 2 | . . . 1 . . . . 2 2 . . 1 1 Highest-Rated Group 96 | . . . 31 . . . . 44 44 . . 96 10 Highest-Rated Ally 96 | . . . 31 . . . . 32 32 . . 96 10 Total Orders . | . . . . . . . . . . . . . . Ally Attacks 30 | . . . 6 . . . . 3 8 . . 13 . Total Damage 700 | . . . 64 . . . . 15 245 . . 376 . Kills 5 | . . . 3 . . . . . . . . 2 . Allies Corrupted . | . . . . . . . . . . . . . . Allies Melted . | . . . . . . . . . . . . . . Intel | -11 -10 -9 -9 -8 -7 -7 -7 -6 -6 -6 -6 -5 -5 ------- Run | Yrd Mat Mat Min Mat Fac Gar Fac Fac Low Low Dat Pro Fac Robot Analysis Total . | . . . . . . . . . . . . . . Derelict Logs Recovered 4 | . . . . . . . . . 1 1 . 2 . Drone Launches . | . . . . . . . . . . . . . . Drone Recoveries . | . . . . . . . . . . . . . . Exploration | -11 -10 -9 -9 -8 -7 -7 -7 -6 -6 -6 -6 -5 -5 ------------- Run | Yrd Mat Mat Min Mat Fac Gar Fac Fac Low Low Dat Pro Fac Turns Passed 2525 | . 108 154 103 246 47 149 631 146 159 120 24 338 300 Spaces Moved 4312 | 1 96 187 180 343 44 194 759 263 390 386 82 846 541 Core 698 | . . . . 91 . 141 192 . . . . . 274 Treads . | . . . . . . . . . . . . . . Legs 57 | 1 56 . . . . . . . . . . . . Wheels . | . . . . . . . . . . . . . . Hover 370 | . 40 183 . 50 44 53 . . . . . . . Flight 3187 | . . 4 180 202 . . 567 263 390 386 82 846 267 Fastest Speed 29 | 120 70 35 32 32 76 50 32 32 29 29 29 29 35 Average Speed 45 | 120 99 62 32 45 83 58 65 32 35 29 29 32 44 Slowest Speed 200 | 120 120 70 35 114 160 80 200 32 112 29 29 35 50 Overloaded Moves . | . . . . . . . . . . . . . . Propulsion Burnouts . | . . . . . . . . . . . . . . Robots Hopped 62 | . . . 6 13 . . 11 4 1 . . 11 16 Cave-ins Triggered . | . . . . . . . . . . . . . . Exploration Rate (%) 36 | 2 23 24 43 44 2 33 18 12 59 70 69 91 17 Regions Visited 13 Branch Regions 5 Pre-discovered Areas 1 | . . . . . . . . . . . 1 . . Known Exits Taken 6 | . . . . . 1 . . 1 1 1 1 1 . Unknown Exits Taken 6 | 1 1 1 1 1 . . 1 . . . . . . Scrap Searched 8 | . . . . . . . . . 2 3 . 3 . Spaces Dug . | . . . . . . . . . . . . . . Terrain Destroyed 1 | . . . . . . . . . . . . 1 . Melee . | . . . . . . . . . . . . . . Projectile 1 | . . . . . . . . . . . . 1 . AOE . | . . . . . . . . . . . . . . Terrain Rammed . | . . . . . . . . . . . . . . Walls Destroyed . | . . . . . . . . . . . . . . Machines Disabled . | . . . . . . . . . . . . . . Actions | -11 -10 -9 -9 -8 -7 -7 -7 -6 -6 -6 -6 -5 -5 --------- Run | Yrd Mat Mat Min Mat Fac Gar Fac Fac Low Low Dat Pro Fac Total 4651 | . 109 217 200 386 50 221 837 314 408 391 81 873 564 Wait 123 | . . 3 13 17 . 8 40 31 1 . . 7 3 Move 4182 | . 95 186 168 318 43 193 737 254 387 385 81 825 510 Hop 55 | . . . 5 11 . . 10 4 1 . . 9 15 Pick Up 17 | . 2 4 1 . . 1 3 2 1 1 . 2 . Fast Attach 39 | . 3 5 2 8 . 2 10 3 1 . . . 5 Attach 25 | . . 1 . 2 . 2 5 . 3 1 . 5 6 Detach 27 | . 2 1 . 3 . 3 5 1 2 2 . 3 5 Swap 9 | . . 1 1 1 1 1 2 1 1 . . . . Drop 35 | . 6 8 2 4 2 2 3 3 4 . . . 1 Fire 133 | . 1 8 8 22 4 9 22 15 7 2 . 22 13 Melee . | . . . . . . . . . . . . . . Ram 6 | . . . . . . . . . . . . . 6 Kick . | . . . . . . . . . . . . . . Crush . | . . . . . . . . . . . . . . Escape Stasis . | . . . . . . . . . . . . . . Rewire . | . . . . . . . . . . . . . . Trap . | . . . . . . . . . . . . . . Miscellaneous . | . . . . . . . . . . . . . . Route ------- -11/Scrapyard -10/Materials -9/Materials -9/Mines -8/Materials -7/Factory -7/Garrison -7/Factory -6/Factory -6/Lower Caves -6/Lower Caves (discovered 2 exits: *Fac / *Dat) -6/Data Miner -5/Proximity Caves -5/Factory (discovered 1 exit: Upp) History --------- Turn | Location | Event 1 | -11/Scrapyard | Discovered new exit (range 0) 1 | -11/Scrapyard | Entered Materials 101 | -10/Materials | Discovered new exit (range 3) 109 | -10/Materials | Entered another Materials area 109 | -9/Materials | Evolved 2 slots: Propulsion x1, Utility x1 261 | -9/Materials | Discovered new exit (range 5) 263 | -9/Materials | Entered Mines 266 | -9/Mines | Received a Mining Laser from a helpful Derelict 301 | -9/Mines | Build established: Mutant 333 | -9/Mines | A weapon hastily lodged in a ceiling crevice suddenly fell to the ground 355 | -9/Mines | Discovered new exit (range 8) 366 | -9/Mines | Entered Materials 366 | -8/Materials | Evolved 2 slots: Utility x2 535 | -8/Materials | Lost 5 parts (1p3n1u) 567 | -8/Materials | Discovered new exit (range 16) 612 | -8/Materials | Entered Factory 612 | -7/Factory | Evolved 2 slots: Utility x2 650 | -7/Factory | Identified exit to Garrison 659 | -7/Factory | Entered Garrison 723 | -7/Garrison | Installed Relay Interface Framework 728 | -7/Garrison | Triggered checkpoint 737 | -7/Garrison | Garrison Relay disabled 776 | -7/Garrison | Triggered checkpoint 776 | -7/Garrison | Triggered checkpoint 793 | -7/Garrison | Lost 3 parts (1n1u1w) 804 | -7/Garrison | Discovered new exit (range 10) 808 | -7/Garrison | Entered Factory 992 | -7/Factory | Core integrity fell below 50% 1417 | -7/Factory | Discovered new exit (range 13) 1439 | -7/Factory | Entered another Factory area 1439 | -6/Factory | Evolved 2 slots: Utility x1, Weapon x1 1550 | -6/Factory | Discovered new exit (range 16) 1555 | -6/Factory | Identified exit to Lower Caves 1585 | -6/Factory | Entered Lower Caves 1585 | -6/Lower Caves | Accompanied by 2 allies 1678 | -6/Lower Caves | Learned Factory security intel 1679 | -6/Lower Caves | Attracted the attention of an 0b10 checkpoint 1738 | -6/Lower Caves | Discovered new exit (range 10) 1743 | -6/Lower Caves | Identified exit to Lower Caves 1744 | -6/Lower Caves | Entered another Lower Caves area 1748 | -6/Lower Caves | Discovered new exit (range 13) 1795 | -6/Lower Caves | Identified exit to Factory 1803 | -6/Lower Caves | Learned Factory stockpile data 1863 | -6/Lower Caves | Discovered new exit (range 4) 1864 | -6/Lower Caves | Identified exit to Data Miner 1864 | -6/Lower Caves | Entered Data Miner 1864 | -6/Data Miner | Discovered new exit (range 6) 1870 | -6/Data Miner | Met Data Miner 1878 | -6/Data Miner | Learned location of Section 7 (-2) 1878 | -6/Data Miner | Acquired the access code to Warlord's prototype stash 1882 | -6/Data Miner | Received God Mode back door access code from Data Miner 1888 | -6/Data Miner | Identified exit to Proximity Caves 1888 | -6/Data Miner | Entered Proximity Caves 1891 | -5/Proximity Caves | Spotter reported a threat 1924 | -5/Proximity Caves | Attracted the attention of an 0b10 outpost 1936 | -5/Proximity Caves | Spotted B-75 Beast 1939 | -5/Proximity Caves | Escorted by Enhanced Grunt 1968 | -5/Proximity Caves | Lost 3 parts (1n2u) 1995 | -5/Proximity Caves | System corruption reached 10% 2024 | -5/Proximity Caves | Build established: Sprinter 2025 | -5/Proximity Caves | Lost 4 parts (1p3u) 2050 | -5/Proximity Caves | Core integrity fell below 50% 2096 | -5/Proximity Caves | Core integrity fell below 20% 2113 | -5/Proximity Caves | Learned 12 Factory zone layouts 2115 | -5/Proximity Caves | Learned Factory security intel 2222 | -5/Proximity Caves | Discovered exit to Factory (range 8) 2224 | -5/Proximity Caves | Attracted the attention of an 0b10 checkpoint 2226 | -5/Proximity Caves | Entered Factory 2226 | -5/Factory | Evolved 2 slots: Utility x2 2227 | -5/Factory | Identified exit to Upper Caves 2289 | -5/Factory | Lost 4 parts (1n2u1w) 2360 | -5/Factory | Build established: Mutant 2407 | -5/Factory | Incoming investigation squad redirected 2487 | -5/Factory | Core integrity fell below 50% 2498 | -5/Factory | Core integrity fell below 20% 2526 | -5/Factory | Search patrols dispatched 2526 | -5/Factory | Destroyed by S-27 Virus with Autogun Last Messages --------------- 02412_ Critical hit (Burn: +37). 02416_ Door malfunctions. 02416_ U-05 Engineer destroyed. 02424_ Acquired Prototype Reactor. 02424_ Identified Fusion Reactor. 02450_ ALERT: Security rotation in progress. 02478_ K-01 Serf cleans the Subcomponent Replicator. 02479_ C-30 ARC bursts open, deploying its payload. 02479_ S-27 Virus unfolds itself. 02479_ Nuclear Pulse Array destroyed. 02486_ Plasma Flamer destroyed. 02488_ Acquired 62 matter. 02493_ C-30 ARC bursts open, deploying its payload. 02493_ S-27 Virus unfolds itself. 02516_ Slammed into S-27 Virus. 02520_ S-27 Virus destroyed. 02521_ Acquired 1 matter. 02522_ Slammed into S-27 Virus. 02526_ ALERT: Heightened foreign activity detected, multiple search patrols dispatched. Map ----- +----------------------------------------------------+ | ????????????????????????? # """ """ #?? | | ????????????????????????? # """ """ #?? | | ????????????????????????? # #?? | | """ """????????????????????????? # " " #?? | | ?????????????????????????????????? # ""R"" #?? | | ?????????????????????????????????? # """"" #?# | | ?????????????????????????????????? ###########?# | | ?????????????????????????????????? #???????????# | | ?????????????????????????????????? #???????????# | | ?????????????????????????????????? #???????????# | | ?????????????????????????????????? #########???# | | ?????????????????????????????????? ##### | | ?????????????????????????????????? | | ?????????????????????????????????? ##### | | ??????????????????????????????????######## ##### | | ??????????????????????????????????######## # | | ?????????????????????????????????? # # "" | | ??????????????????????????????????"""""" # # "" | | ?????????????????????????????????? # # """ | | ??????????????????????????????????"""""" # # """ | | ?????????????????????????????????? # # """ | | ??????????????????????????????????"""""" + + | | ????????????########?????????????? # # | | ????????????# ! #??????####????######## ##### | | ????????????# ####### #???? # #??? | | ????????????# """ + s%%@s #???? # #### | | ????????????# """ ####*s #????"""" + | | ????????????# """ #??# #????"""" # #### | | ????????????#| #??# #????"""" # #??# | | #?????????######/#### #???????????????????? | | #???????????# #???????????????????? | | #???????????# ##+##+########???????????????????? | | #######?????# #????????????????????????????????? | | # ?????# #????????????????????????????????? | | ### ?????# #????????????????????????????????? | | # ??#### #????????????????????????????????? | | # ??# #????????????????????????????????? | | # ??# ###????????????????????????????????? | | # ??# ########?????#?????????????????????? | | # ??# + ! #?????????????????????? | | + ??# ## #?????????????????????? | | # ??# #??? #?#####???????????????? | | ########## #???" "" #?# ???????????????? | | ## "" "" #?# ???????????????? | | = ## """ """ #?# ???????????????? | | # """ """ #?# """"???????????? | | # """ """ #?# ! """"#??????????? | | =! # #?# """"#??????????? | | """" =! # ??# """"#??????????? | | """" ] #? ????? """"#??????????? | +----------------------------------------------------+ Best States ------------- Heat Dissipation 40 Energy Generation 23 Energy Capacity 310 Matter Stores 300 Matter Capacity 300 Sight Range 18 Robot Scan Range 15 Terrain Scan Density 85 ECM Strength 1 Additional Mass Support 6 Evasion (%) 71 Targeting Accuracy 16 Offensive Hacking 10 Defensive Hacking 10 Relay Coupler Types 3 Relay Coupler Value 94 Item Schematics ----------------- Combat Drone Bay | -6/Data Miner | Free Lgt. Regenerative Plating | -6/Data Miner | Free Enh. Flexi-carbon Leg | -6/Data Miner | Free Imp. Energy Well | -6/Data Miner | Free Enh. Coil Gun | -6/Data Miner | Free Myomer Leg | -6/Data Miner | Free Adv. Particle Charger | -6/Data Miner | Free Hvy. Gauss Cannon | -6/Data Miner | Free Lgt. Particle Reactor | -6/Data Miner | Free Robot Schematics ------------------ G-50 Soldier | -6/Data Miner | Free R-10 Processor | -6/Data Miner | Free Y-54 Guardian | -6/Data Miner | Free B-60 Warrior | -6/Data Miner | Free E-15 Imp | -6/Data Miner | Free Fabricated ------------ Nothing Alien Tech Used ----------------- None Achievements -------------- None Challenges ------------ None Game ------ Seed ArcDisruptorExoskeleton Manual? 0 Play Time 00:36:09 Cumulative 575.3 hours Start 2024.01.06 @ 15:05:12 End 2024.01.06 @ 15:43:24 Sessions 1 Manual Loads 0 Difficulty Rogue Special Mode None Game No. 477 Rogue 204 Adventurer 123 Explorer 150 Win Type - Total 25 Types 19/0/4/1/0/0/0/1/0 Lore% 77 Gallery% 90 Achievement% 75 Wizard Run 0 Options --------- ASCII 0 Keyboard 1 Movement Numpad Keybinds 0 Fullscreen 2 Font 18/X11Bold Map View 76x50 Zoom Use 0% Tactical HUD 1 Map Filters NONE Filters NONE Steam 1 RUN: 84406efc-340a-4340-be67-cb0dccd1fa9c